[Event "FIDE Chesscom Grand Swiss 2019"]
[Site "Douglas-Isle of Man"]
[Date "2019.10.19"]
[Round "9.16"]
[White "Najer, Evgeniy"]
[Black "Soumya, Swaminathan"]
[Result "1-0"]
[ECO "B48"]
[WhiteElo "2635"]
[BlackElo "2365"]
[Annotator "ChessBase"]
[PlyCount "65"]
[EventDate "2019.10.10"]
[EventType "swiss"]
[EventCountry "GBR"]
[SourceTitle "playchess.com"]
[Source "ChessBase"]
[SourceQuality "1"]
[TimeControl "40/6000+30:20/3000+30:900+30"]

1. e4 {[%emt 0:00:00]} c5 {[%emt 0:00:00]} 2. Nf3 {[%emt 0:00:01]} e6 {[%emt 0:00:01]} 3. d4 {[%emt 0:00:38]} cxd4 {[%emt 0:00:04]} 4. Nxd4 {[%emt 0:00:05]} Nc6 {[%emt 0:00:04]} 5. Nc3 {[%emt 0:00:17]} Qc7 {[%emt 0:00:06]} 6. Be3 {[%emt 0:03:47]} a6 {[%emt 0:00:30]} 7. Bd3 {[%emt 0:03:21]} b5 {[%emt 0:10:59]} 8. Nxc6 {[%emt 0:00:47]} Qxc6 {[%emt 0:03:01]} 9. Qe2 {[%emt 0:22:18]} Bb7 {[%emt 0:14:47]} 10. O-O-O {[%emt 0:08:12]} Qc7 {[%emt 0:21:18]} 11. Kb1 {[%emt 0:13:21]} Nf6 {[%emt 0:16:57]} 12. Bd4 {[%emt 0:00:52]} b4 {[%emt 0:07:20]} 13. e5 {[%emt 0:03:36]} bxc3 {[%emt 0:07:17]} 14. exf6 {[%emt 0:00:12]} gxf6 {[%emt 0:00:03]} 15. Bxc3 {[%emt 0:10:42]} Be7 {[%emt 0:03:19]} 16. Qg4 {[%emt 0:08:08]} h5 {[%emt 0:13:34]} 17. Qg7 {[%emt 0:04:49]} O-O-O {[%emt 0:00:40]} 18. Bxf6 {[%emt 0:03:44]} Rhg8 {[%emt 0:02:26]} 19. Qh6 {[%emt 0:00:25]} Bxf6 {[%emt 0:00:37]} 20. Qxf6 {[%emt 0:00:04]} Rxg2 {[%emt 0:00:19]} 21. h3 {[%emt 0:00:11]} Qc5 {[%emt 0:03:11]} 22. Rhf1 {[%emt 0:00:17]} a5 {[%emt 0:01:12]} 23. a3 {[%emt 0:00:29]} Bc6 {[%emt 0:00:29]} 24. Rde1 {[%emt 0:02:13]} Kc7 {[%emt 0:02:08]} 25. Be4 {[%emt 0:00:33]} Bxe4 {[%emt 0:00:56]} 26. Rxe4 {[%emt 0:00:04]} Rg5 {[%emt 0:00:27]} 27. Qf4+ {[%emt 0:13:30]} Kb6 {[%emt 0:00:02]} 28. Rc4 {[%emt 0:01:12]} Qe5 {[%emt 0:00:31]} 29. Qd2 {[%emt 0:01:11]} d5 {[%emt 0:01:35]} 30. f4 {[%emt 0:01:19]} Qf6 {[%emt 0:00:35]} 31. Qf2+ {[%emt 0:00:54]} Kb7 {[%emt 0:00:24]} 32. Rc3 {[%emt 0:02:39]} Rgg8 {[%emt 0:00:34]} 33. Qc5 {[%emt 0:00:56]} 1-0

[Event "FIDE Chesscom Grand Swiss 2019"]
[Site "Douglas-Isle of Man"]
[Date "2019.10.19"]
[Round "9.17"]
[White "Alekseev, Evgeny"]
[Black "Bjerre, Jonas Buhl"]
[Result "1/2-1/2"]
[ECO "B52"]
[WhiteElo "2629"]
[BlackElo "2506"]
[Annotator "ChessBase"]
[PlyCount "93"]
[EventDate "2019.10.10"]
[EventType "swiss"]
[EventCountry "GBR"]
[SourceTitle "playchess.com"]
[Source "ChessBase"]
[SourceQuality "1"]
[TimeControl "40/6000+30:20/3000+30:900+30"]

1. e4 {[%emt 0:02:44]} c5 {[%emt 0:00:00]} 2. Nf3 {[%emt 0:00:16]} d6 {[%emt 0:00:19]} 3. Bb5+ {[%emt 0:01:47]} Bd7 {[%emt 0:00:43]} 4. Bxd7+ {[%emt 0:02:55]} Nxd7 {[%emt 0:00:39]} 5. O-O {[%emt 0:05:36]} Ngf6 {[%emt 0:00:21]} 6. Qe2 {[%emt 0:01:08]} e6 {[%emt 0:00:24]} 7. c3 {[%emt 0:00:44]} Be7 {[%emt 0:01:00]} 8. d4 {[%emt 0:00:55]} O-O {[%emt 0:04:29]} 9. e5 {[%emt 0:03:33]} Ne8 {[%emt 0:04:20]} 10. dxc5 {[%emt 0:15:06]} Nxc5 {[%emt 0:00:55]} 11. Rd1 {[%emt 0:00:46]} Qb6 {[%emt 0:13:44]} 12. c4 {[%emt 0:10:34]} dxe5 {[%emt 0:08:33]} 13. Nxe5 {[%emt 0:01:11]} Nf6 {[%emt 0:02:37]} 14. Nc3 {[%emt 0:02:28]} Rfd8 {[%emt 0:04:21]} 15. Be3 {[%emt 0:04:30]} Qc7 {[%emt 0:03:03]} 16. Bf4 {[%emt 0:01:37]} Qb6 {[%emt 0:03:02]} 17. h3 {[%emt 0:06:32]} a6 {[%emt 0:09:28]} 18. Rab1 {[%emt 0:05:58]} Rxd1+ {[%emt 0:01:58]} 19. Rxd1 {[%emt 0:00:10]} Rd8 {[%emt 0:02:05]} 20. Rxd8+ {[%emt 0:00:35]} Qxd8 {[%emt 0:01:29]} 21. b4 {[%emt 0:03:44]} Ncd7 {[%emt 0:08:10]} 22. c5 {[%emt 0:08:05]} Nxe5 {[%emt 0:03:03]} 23. Bxe5 {[%emt 0:02:23]} Nd5 {[%emt 0:06:23]} 24. Qd1 {[%emt 0:09:36]} f6 {[%emt 0:06:35]} 25. Nxd5 {[%emt 0:01:09]} Qxd5 {[%emt 0:00:32]} 26. Qxd5 {[%emt 0:00:54]} exd5 {[%emt 0:00:08]} 27. Bd4 {[%emt 0:01:53]} Kf7 {[%emt 0:02:05]} 28. Kf1 {[%emt 0:01:36]} Ke6 {[%emt 0:00:39]} 29. a4 {[%emt 0:00:07]} h5 {[%emt 0:03:04]} 30. Ke2 {[%emt 0:02:16]} Bd8 {[%emt 0:01:52]} 31. Kd3 {[%emt 0:01:32]} Bc7 {[%emt 0:02:32]} 32. b5 {[%emt 0:00:50]} axb5 {[%emt 0:02:31]} 33. axb5 {[%emt 0:00:01]} Ba5 {[%emt 0:02:31]} 34. Be3 {[%emt 0:02:13]} Bc7 {[%emt 0:02:21]} 35. h4 {[%emt 0:04:52]} Bd8 {[%emt 0:04:50]} 36. Bf4 {[%emt 0:02:16]} g5 {[%emt 0:03:15]} 37. Bh2 {[%emt 0:02:47]} gxh4 {[%emt 0:00:40]} 38. Kd4 {[%emt 0:02:36]} Ba5 {[%emt 0:01:29]} 39. Bf4 {[%emt 0:00:57]} Be1 {[%emt 0:00:53]} 40. Be3 {[%emt 0:00:16]} f5 {[%emt 0:02:04]} 41. f3 {[%emt 0:11:56]} Bg3 {[%emt 0:02:58]} 42. f4 {[%emt 0:00:13]} Be1 {[%emt 0:01:25]} 43. Kd3 {[%emt 0:03:48]} Bb4 {[%emt 0:01:34]} 44. Bf2 {[%emt 0:04:22]} Ba3 {[%emt 0:03:05]} 45. Bd4 {[%emt 0:00:40]} Bb4 {[%emt 0:01:32]} 46. Be3 {[%emt 0:00:49]} Kd7 {[%emt 0:04:33]} 47. Bd4 {[%emt 0:01:26]} 1/2-1/2

[Event "FIDE Chesscom Grand Swiss 2019"]
[Site "Douglas-Isle of Man"]
[Date "2019.10.19"]
[Round "9.20"]
[White "Demchenko, Anton"]
[Black "L'Ami, Erwin"]
[Result "*"]
[ECO "C54"]
[WhiteElo "2655"]
[BlackElo "2619"]
[Annotator "RC"]
[PlyCount "39"]
[EventDate "2019.10.10"]
[EventType "swiss"]
[EventCountry "GBR"]
[SourceTitle "playchess.com"]
[Source "ChessBase"]
[SourceQuality "1"]
[TimeControl "40/6000+30:20/3000+30:900+30"]

1. e4 {[%emt 0:00:00]} e5 {[%emt 0:00:00]} 2. Nf3 {[%emt 0:00:00]} Nc6 {[%emt 0:00:00]} 3. Bc4 {[%emt 0:00:09]} Bc5 {[%emt 0:00:03]} 4. d3 {[%emt 0:00:06]} Nf6 {[%emt 0:00:10]} 5. O-O {[%emt 0:01:04]} h6 {[%emt 0:00:15]} 6. c3 {[%emt 0:00:31]} d6 {[%emt 0:00:09]} 7. Nbd2 {[%emt 0:01:26]} O-O {[%emt 0:01:27]} 8. h3 {[%emt 0:00:54]} a6 {[%emt 0:00:38]} 9. a4 {[%emt 0:00:09]} Ba7 {[%emt 0:01:44]} 10. Re1 {[%emt 0:00:31]} Re8 {[%emt 0:00:10]} 11. b4 {[%emt 0:00:14]} Be6 {[%emt 0:00:09]} 12. Bxe6 {[%emt 0:00:05]} Rxe6 {[%emt 0:00:08]} 13. Bb2 {[%emt 0:00:39]} Ne7 {[%emt 0:02:49]} 14. Nf1 {[%emt 0:01:41]} Nh5 {[%emt 0:05:04]} 15. Ne3 {[%emt 0:18:37]} Nf4 {[%emt 0:06:40]} 16. g3 {[%emt 0:25:37]} Nxh3+ {[%emt 0:04:19]} 17. Kg2 {[%emt 0:00:04]} Ng5 {[%emt 0:02:00]} 18. Nxg5 {[%emt 0:00:05]} hxg5 {[%emt 0:00:11]} 19. Qh5 {[%emt 0:03:05]} Bxe3 {[%emt 0:06:25]} 20. Rxe3 {[%emt 0:00:17]} *

[Event "FIDE Chesscom Grand Swiss 2019"]
[Site "Douglas-Isle of Man"]
[Date "2019.10.19"]
[Round "9.20"]
[White "Christiansen, Johan-Sebastian"]
[Black "Movsesian, Sergei"]
[Result "0-1"]
[ECO "B48"]
[WhiteElo "2558"]
[BlackElo "2654"]
[Annotator "ChessBase"]
[PlyCount "84"]
[EventDate "2019.10.10"]
[EventType "swiss"]
[EventCountry "GBR"]
[SourceTitle "playchess.com"]
[Source "ChessBase"]
[SourceQuality "1"]
[TimeControl "40/6000+30:20/3000+30:900+30"]

1. e4 {[%emt 0:00:01]} c5 {[%emt 0:00:00]} 2. Nf3 {[%emt 0:00:18]} e6 {[%emt 0:00:00]} 3. d4 {[%emt 0:00:16]} cxd4 {[%emt 0:00:00]} 4. Nxd4 {[%emt 0:00:04]} Nc6 {[%emt 0:00:05]} 5. Nc3 {[%emt 0:00:12]} Qc7 {[%emt 0:00:12]} 6. Be3 {[%emt 0:00:53]} a6 {[%emt 0:00:29]} 7. Qf3 {[%emt 0:01:10]} Bd6 {[%emt 0:01:22]} 8. O-O-O {[%emt 0:00:35]} Be5 {[%emt 0:00:25]} 9. Nxc6 {[%emt 0:03:25]} bxc6 {[%emt 0:01:04]} 10. Bd4 {[%emt 0:01:26]} Bxd4 {[%emt 0:01:56]} 11. Rxd4 {[%emt 0:00:19]} Nf6 {[%emt 0:00:36]} 12. Qe3 {[%emt 0:08:29]} e5 {[%emt 0:12:23]} 13. Rd2 {[%emt 0:06:22]} d6 {[%emt 0:09:45]} 14. Be2 {[%emt 0:37:53]} O-O {[%emt 0:09:02]} 15. f4 {[%emt 0:22:50]} Rb8 {[%emt 0:17:04]} 16. fxe5 {[%emt 0:02:37]} dxe5 {[%emt 0:00:20]} 17. Bc4 {[%emt 0:10:21]} Qa5 {[%emt 0:07:21]} 18. Rf1 {[%emt 0:02:27]} Qb4 {[%emt 0:01:31]} 19. b3 {[%emt 0:01:48]} Qa3+ {[%emt 0:05:00]} 20. Kb1 {[%emt 0:00:33]} Qb4 {[%emt 0:00:28]} 21. Ka1 {[%emt 0:01:54]} a5 {[%emt 0:03:14]} 22. Rd3 {[%emt 0:03:01]} Be6 {[%emt 0:02:11]} 23. Bxe6 {[%emt 0:00:23]} fxe6 {[%emt 0:00:03]} 24. Rfd1 {[%emt 0:01:33]} Kh8 {[%emt 0:05:31]} 25. Qg3 {[%emt 0:02:13]} Qc5 {[%emt 0:01:24]} 26. Qe3 {[%emt 0:00:17]} Qb4 {[%emt 0:00:36]} 27. Qg3 {[%emt 0:00:02]} Qc5 {[%emt 0:01:00]} 28. Kb2 {[%emt 0:01:06]} h6 {[%emt 0:01:21]} 29. Qe3 {[%emt 0:00:14]} Qb4 {[%emt 0:00:52]} 30. Qg3 {[%emt 0:00:41]} a4 {[%emt 0:01:52]} 31. Qe1 {[%emt 0:01:11]} c5 {[%emt 0:01:53]} 32. a3 {[%emt 0:00:29]} Qa5 {[%emt 0:03:22]} 33. Rd6 {[%emt 0:00:15]} axb3 {[%emt 0:01:31]} 34. cxb3 {[%emt 0:00:01]} Rb7 {[%emt 0:02:19]} 35. Qd2 {[%emt 0:00:10]} Kh7 {[%emt 0:01:02]} 36. Ka2 {[%emt 0:01:09]} c4 {[%emt 0:04:39]} 37. Rb1 {[%emt 0:00:26]} Ra8 {[%emt 0:02:32]} 38. Qc1 {[%emt 0:01:21]} Qb4 {[%emt 0:01:37]} 39. bxc4 {[%emt 0:00:33]} Qxc4+ {[%emt 0:00:46]} 40. Ka1 {[%emt 0:00:05]} Rxb1+ {[%emt 0:01:10]} 41. Kxb1 {[%emt 0:50:11]} Rb8+ {[%emt 0:51:06]} 42. Ka1 {[%emt 0:00:00]} Nxe4 {[%emt 0:00:00]} 0-1

[Event "FIDE Chesscom Grand Swiss 2019"]
[Site "Douglas-Isle of Man"]
[Date "2019.10.19"]
[Round "9.21"]
[White "Riazantsev, Alexander"]
[Black "Gonzalez Vidal, Yuri"]
[Result "1-0"]
[ECO "C45"]
[WhiteElo "2645"]
[BlackElo "2552"]
[Annotator "ChessBase"]
[PlyCount "93"]
[EventDate "2019.10.10"]
[EventType "swiss"]
[EventCountry "GBR"]
[SourceTitle "playchess.com"]
[Source "ChessBase"]
[SourceQuality "1"]
[TimeControl "40/6000+30:20/3000+30:900+30"]

1. e4 {[%emt 0:00:00]} e5 {[%emt 0:00:00]} 2. Nf3 {[%emt 0:00:00]} Nc6 {[%emt 0:00:12]} 3. d4 {[%emt 0:00:00]} exd4 {[%emt 0:00:33]} 4. Nxd4 {[%emt 0:00:00]} Bc5 {[%emt 0:00:33]} 5. Nb3 {[%emt 0:01:22]} Bb6 {[%emt 0:00:18]} 6. Qe2 {[%emt 0:00:43]} d6 {[%emt 0:06:03]} 7. Nc3 {[%emt 0:03:00]} Nf6 {[%emt 0:04:05]} 8. Be3 {[%emt 0:05:18]} O-O {[%emt 0:04:11]} 9. O-O-O {[%emt 0:00:39]} Be6 {[%emt 0:26:18]} 10. Kb1 {[%emt 0:11:40]} Re8 {[%emt 0:02:46]} 11. f3 {[%emt 0:02:26]} d5 {[%emt 0:08:54]} 12. Bg5 {[%emt 0:11:31]} d4 {[%emt 0:00:29]} 13. Na4 {[%emt 0:00:11]} Qe7 {[%emt 0:10:01]} 14. Qe1 {[%emt 0:03:37]} h6 {[%emt 0:02:45]} 15. Bh4 {[%emt 0:00:35]} Bxb3 {[%emt 0:05:11]} 16. cxb3 {[%emt 0:02:30]} Ba5 {[%emt 0:00:14]} 17. Qf2 {[%emt 0:02:59]} a6 {[%emt 0:02:50]} 18. Qc2 {[%emt 0:07:45]} Bb4 {[%emt 0:01:37]} 19. a3 {[%emt 0:04:59]} Bd6 {[%emt 0:00:20]} 20. b4 {[%emt 0:01:25]} Rab8 {[%emt 0:09:49]} 21. Be2 {[%emt 0:11:16]} Red8 {[%emt 0:02:26]} 22. Rhe1 {[%emt 0:07:40]} Bf4 {[%emt 0:08:29]} 23. Nc5 {[%emt 0:02:30]} Be3 {[%emt 0:00:58]} 24. Nxa6 {[%emt 0:07:44]} bxa6 {[%emt 0:01:12]} 25. Qxc6 {[%emt 0:00:09]} a5 {[%emt 0:01:54]} 26. Qc5 {[%emt 0:03:21]} Qe8 {[%emt 0:05:31]} 27. Bxf6 {[%emt 0:03:40]} gxf6 {[%emt 0:00:28]} 28. Qxa5 {[%emt 0:00:03]} c5 {[%emt 0:02:21]} 29. Qxc5 {[%emt 0:00:53]} Rdc8 {[%emt 0:00:11]} 30. Qd5 {[%emt 0:00:46]} Qa4 {[%emt 0:01:03]} 31. Bc4 {[%emt 0:01:23]} Rc7 {[%emt 0:00:07]} 32. Bb3 {[%emt 0:02:39]} Qa6 {[%emt 0:00:09]} 33. f4 {[%emt 0:03:17]} Bxf4 {[%emt 0:00:39]} 34. Rxd4 {[%emt 0:00:05]} Be5 {[%emt 0:00:22]} 35. Rc4 {[%emt 0:00:26]} Rxc4 {[%emt 0:01:22]} 36. Qxc4 {[%emt 0:01:19]} Qa7 {[%emt 0:00:46]} 37. Rd1 {[%emt 0:00:27]} Qf2 {[%emt 0:01:15]} 38. Qc2 {[%emt 0:01:54]} Qa7 {[%emt 0:01:08]} 39. g3 {[%emt 0:01:12]} Qb7 {[%emt 0:00:38]} 40. Bd5 {[%emt 0:01:34]} Qe7 {[%emt 0:00:42]} 41. Rc1 {[%emt 0:52:31]} Kg7 {[%emt 0:02:00]} 42. Qc5 {[%emt 0:00:00]} Qd7 {[%emt 0:00:35]} 43. Rc2 {[%emt 0:00:00]} Qg4 {[%emt 0:02:31]} 44. Ka2 {[%emt 0:00:00]} Qd1 {[%emt 0:04:16]} 45. Bb3 {[%emt 0:00:00]} Rd8 {[%emt 0:04:51]} 46. b5 {[%emt 0:00:00]} Qd7 {[%emt 0:02:24]} 47. Bd5 {[%emt 0:00:00]} 1-0

[Event "FIDE Chesscom Grand Swiss 2019"]
[Site "Douglas-Isle of Man"]
[Date "2019.10.19"]
[Round "9.22"]
[White "Demchenko, Anton"]
[Black "L'Ami, Erwin"]
[Result "0-1"]
[ECO "C54"]
[WhiteElo "2655"]
[BlackElo "2619"]
[Annotator "RC"]
[PlyCount "76"]
[EventDate "2019.10.10"]
[EventType "swiss"]
[EventCountry "GBR"]
[SourceTitle "playchess.com"]
[Source "ChessBase"]
[SourceQuality "1"]
[TimeControl "40/6000+30:20/3000+30:900+30"]

1. e4 {[%emt 0:00:00]} e5 {[%emt 0:00:00]} 2. Nf3 {[%emt 0:00:00]} Nc6 {[%emt 0:00:00]} 3. Bc4 {[%emt 0:00:09]} Bc5 {[%emt 0:00:03]} 4. d3 {[%emt 0:00:06]} Nf6 {[%emt 0:00:10]} 5. O-O {[%emt 0:01:04]} h6 {[%emt 0:00:15]} 6. c3 {[%emt 0:00:31]} d6 {[%emt 0:00:09]} 7. Nbd2 {[%emt 0:01:26]} O-O {[%emt 0:01:27]} 8. h3 {[%emt 0:00:54]} a6 {[%emt 0:00:38]} 9. a4 {[%emt 0:00:09]} Ba7 {[%emt 0:01:44]} 10. Re1 {[%emt 0:00:31]} Re8 {[%emt 0:00:10]} 11. b4 {[%emt 0:00:14]} Be6 {[%emt 0:00:09]} 12. Bxe6 {[%emt 0:00:05]} Rxe6 {[%emt 0:00:08]} 13. Bb2 {[%emt 0:00:39]} Ne7 {[%emt 0:02:49]} 14. Nf1 {[%emt 0:01:41]} Nh5 {[%emt 0:05:04]} 15. Ne3 {[%emt 0:18:37]} Nf4 {[%emt 0:06:40]} 16. g3 {[%emt 0:25:37]} Nxh3+ {[%emt 0:04:19]} 17. Kg2 {[%emt 0:00:04]} Ng5 {[%emt 0:02:00]} 18. Nxg5 {[%emt 0:00:05]} hxg5 {[%emt 0:00:11]} 19. Qh5 {[%emt 0:03:05]} Bxe3 {[%emt 0:06:25]} 20. Rxe3 {[%emt 0:00:17]} Rg6 {[%emt 0:05:42]} 21. Rh1 {[%emt 0:06:06]} f6 {[%emt 0:02:10]} 22. Qd1 {[%emt 0:00:05]} Rh6 {[%emt 0:03:37]} 23. Ree1 {[%emt 0:07:59]} Qe8 {[%emt 0:04:58]} 24. d4 {[%emt 0:03:10]} Qf7 {[%emt 0:04:16]} 25. dxe5 {[%emt 0:08:28]} dxe5 {[%emt 0:05:59]} 26. Rxh6 {[%emt 0:00:30]} gxh6 {[%emt 0:00:08]} 27. Rh1 {[%emt 0:00:01]} Kg7 {[%emt 0:11:14]} 28. Qd7 {[%emt 0:00:13]} Nc8 {[%emt 0:13:08]} 29. Qh3 {[%emt 0:09:37]} h5 {[%emt 0:02:01]} 30. f4 {[%emt 0:00:08]} Nd6 {[%emt 0:08:48]} 31. fxe5 {[%emt 0:00:24]} Nxe4 {[%emt 0:01:31]} 32. Qf5 {[%emt 0:22:22]} Rd8 {[%emt 0:01:50]} 33. Re1 {[%emt 0:00:16]} Rd2+ {[%emt 0:04:57]} 34. Kg1 {[%emt 0:00:01]} Nxg3 {[%emt 0:01:23]} 35. Qf3 {[%emt 0:01:38]} Rxb2 {[%emt 0:02:24]} 36. Qxg3 {[%emt 0:00:01]} Qd5 {[%emt 0:02:17]} 37. e6 {[%emt 0:01:31]} h4 {[%emt 0:00:56]} 38. Qg4 {[%emt 0:00:43]} Qd2 {[%emt 0:00:16]} 0-1

[Event "FIDE Chesscom Grand Swiss 2019"]
[Site "Douglas-Isle of Man"]
[Date "2019.10.19"]
[Round "9.22"]
[White "Riazantsev, Alexander"]
[Black "Gonzalez Vidal, Yuri"]
[Result "*"]
[ECO "C45"]
[WhiteElo "2645"]
[BlackElo "2552"]
[Annotator "ChessBase"]
[PlyCount "22"]
[EventDate "2019.10.10"]
[EventType "swiss"]
[EventCountry "GBR"]
[SourceTitle "playchess.com"]
[Source "ChessBase"]
[SourceQuality "1"]
[TimeControl "40/6000+30:20/3000+30:900+30"]

1. e4 {[%emt 0:00:00]} e5 {[%emt 0:00:00]} 2. Nf3 {[%emt 0:00:00]} Nc6 {[%emt 0:00:12]} 3. d4 {[%emt 0:00:00]} exd4 {[%emt 0:00:33]} 4. Nxd4 {[%emt 0:00:00]} Bc5 {[%emt 0:00:33]} 5. Nb3 {[%emt 0:01:22]} Bb6 {[%emt 0:00:18]} 6. Qe2 {[%emt 0:00:43]} d6 {[%emt 0:06:02]} 7. Nc3 {[%emt 0:03:00]} Nf6 {[%emt 0:04:05]} 8. Be3 {[%emt 0:05:18]} O-O {[%emt 0:04:11]} 9. O-O-O {[%emt 0:00:39]} Be6 {[%emt 0:26:18]} 10. Kb1 {[%emt 0:11:40]} Re8 {[%emt 0:02:46]} 11. f3 {[%emt 0:02:26]} d5 {[%emt 0:08:54]} *

[Event "FIDE Chesscom Grand Swiss 2019"]
[Site "Douglas-Isle of Man"]
[Date "2019.10.19"]
[Round "9.23"]
[White "Zvjaginsev, Vadim"]
[Black "Keymer, Vincent"]
[Result "1/2-1/2"]
[ECO "A17"]
[WhiteElo "2644"]
[BlackElo "2506"]
[Annotator "ChessBase"]
[PlyCount "100"]
[EventDate "2019.10.10"]
[EventType "swiss"]
[EventCountry "GBR"]
[SourceTitle "playchess.com"]
[Source "ChessBase"]
[SourceQuality "1"]
[TimeControl "40/6000+30:20/3000+30:900+30"]

1. c4 {[%emt 0:00:00]} e6 {[%emt 0:00:00]} 2. Nc3 {[%emt 0:00:00]} Nf6 {[%emt 0:00:01]} 3. Nf3 {[%emt 0:02:42]} d5 {[%emt 0:00:06]} 4. e3 {[%emt 0:01:21]} dxc4 {[%emt 0:00:05]} 5. Bxc4 {[%emt 0:00:54]} a6 {[%emt 0:00:03]} 6. a4 {[%emt 0:02:05]} c5 {[%emt 0:00:15]} 7. b3 {[%emt 0:01:38]} Nc6 {[%emt 0:00:39]} 8. Bb2 {[%emt 0:00:24]} Be7 {[%emt 0:03:30]} 9. g4 {[%emt 0:02:43]} h6 {[%emt 0:11:19]} 10. Rg1 {[%emt 0:02:09]} b6 {[%emt 0:04:39]} 11. h4 {[%emt 0:03:18]} Nd7 {[%emt 0:14:31]} 12. Ne4 {[%emt 0:04:32]} Nf6 {[%emt 0:04:52]} 13. Qb1 {[%emt 0:02:17]} Bb7 {[%emt 0:05:15]} 14. g5 {[%emt 0:03:50]} Nxe4 {[%emt 0:05:26]} 15. Qxe4 {[%emt 0:01:20]} Na5 {[%emt 0:00:31]} 16. Qf4 {[%emt 0:04:59]} Nxc4 {[%emt 0:02:07]} 17. bxc4 {[%emt 0:00:58]} hxg5 {[%emt 0:01:51]} 18. hxg5 {[%emt 0:06:06]} f6 {[%emt 0:09:57]} 19. gxf6 {[%emt 0:03:49]} Bxf6 {[%emt 0:02:38]} 20. Ne5 {[%emt 0:28:48]} Qd6 {[%emt 0:09:02]} 21. O-O-O {[%emt 0:00:25]} O-O-O {[%emt 0:04:38]} 22. d3 {[%emt 0:02:34]} Rh5 {[%emt 0:03:12]} 23. Nf7 {[%emt 0:06:42]} Qxf4 {[%emt 0:03:15]} 24. exf4 {[%emt 0:01:58]} Rd7 {[%emt 0:05:02]} 25. Ng5 {[%emt 0:01:01]} Re7 {[%emt 0:01:57]} 26. Rde1 {[%emt 0:04:51]} Bxg5 {[%emt 0:07:01]} 27. Rxg5 {[%emt 0:01:23]} Rxg5 {[%emt 0:01:23]} 28. fxg5 {[%emt 0:00:05]} Kd7 {[%emt 0:00:44]} 29. g6 {[%emt 0:01:18]} e5 {[%emt 0:01:51]} 30. Rxe5 {[%emt 0:05:26]} Rxe5 {[%emt 0:00:26]} 31. Bxe5 {[%emt 0:00:04]} Bf3 {[%emt 0:00:09]} 32. a5 {[%emt 0:00:49]} b5 {[%emt 0:06:33]} 33. cxb5 {[%emt 0:00:37]} axb5 {[%emt 0:00:04]} 34. Bxg7 {[%emt 0:02:01]} Bh5 {[%emt 0:00:04]} 35. Bf8 {[%emt 0:00:13]} Bxg6 {[%emt 0:00:04]} 36. Kd2 {[%emt 0:00:18]} Kc6 {[%emt 0:00:09]} 37. a6 {[%emt 0:04:09]} Kb6 {[%emt 0:00:05]} 38. Bxc5+ {[%emt 0:00:40]} Kxa6 {[%emt 0:00:04]} 39. d4 {[%emt 0:00:38]} Bf7 {[%emt 0:01:06]} 40. Ke3 {[%emt 0:00:11]} Kb7 {[%emt 0:00:06]} 41. Ke4 {[%emt 0:50:12]} Kc6 {[%emt 0:50:04]} 42. Ke5 {[%emt 0:00:10]} Bc4 {[%emt 0:00:06]} 43. f4 {[%emt 0:00:30]} Bb3 {[%emt 0:00:05]} 44. f5 {[%emt 0:00:59]} Bc4 {[%emt 0:00:05]} 45. Bb4 {[%emt 0:00:05]} Bb3 {[%emt 0:00:11]} 46. Bc3 {[%emt 0:01:12]} Bc4 {[%emt 0:00:36]} 47. Kf6 {[%emt 0:00:15]} Kd7 {[%emt 0:00:17]} 48. Kg7 {[%emt 0:00:38]} Ke8 {[%emt 0:00:29]} 49. Kg6 {[%emt 0:00:10]} Bb3 {[%emt 0:00:36]} 50. Kf6 {[%emt 0:01:27]} Kd7 {[%emt 0:00:05]} 1/2-1/2

[Event "FIDE Chesscom Grand Swiss 2019"]
[Site "Douglas-Isle of Man"]
[Date "2019.10.19"]
[Round "9.24"]
[White "Piorun, Kacper"]
[Black "Kashlinskaya, Alina"]
[Result "0-1"]
[ECO "A21"]
[WhiteElo "2643"]
[BlackElo "2481"]
[Annotator "ChessBase"]
[PlyCount "116"]
[EventDate "2019.10.10"]
[EventType "swiss"]
[EventCountry "GBR"]
[SourceTitle "playchess.com"]
[Source "ChessBase"]
[SourceQuality "1"]
[TimeControl "40/6000+30:20/3000+30:900+30"]

1. c4 {[%emt 0:00:00]} e5 {[%emt 0:00:00]} 2. Nc3 {[%emt 0:00:00]} Bb4 {[%emt 0:00:00]} 3. Nd5 {[%emt 0:00:00]} Be7 {[%emt 0:00:13]} 4. Nf3 {[%emt 0:00:24]} d6 {[%emt 0:00:27]} 5. d4 {[%emt 0:00:07]} Nf6 {[%emt 0:00:16]} 6. Nxe7 {[%emt 0:01:22]} Qxe7 {[%emt 0:00:07]} 7. e3 {[%emt 0:00:12]} O-O {[%emt 0:07:02]} 8. Be2 {[%emt 0:00:30]} exd4 {[%emt 0:09:36]} 9. Nxd4 {[%emt 0:05:17]} Rd8 {[%emt 0:01:08]} 10. O-O {[%emt 0:05:47]} c5 {[%emt 0:01:33]} 11. Nf3 {[%emt 0:00:51]} Bf5 {[%emt 0:06:45]} 12. Bd2 {[%emt 0:05:55]} Ne4 {[%emt 0:09:59]} 13. Qb3 {[%emt 0:13:54]} Nxd2 {[%emt 0:08:44]} 14. Nxd2 {[%emt 0:00:02]} Nc6 {[%emt 0:00:08]} 15. Rfe1 {[%emt 0:09:58]} Be6 {[%emt 0:02:08]} 16. e4 {[%emt 0:03:05]} a6 {[%emt 0:14:42]} 17. Qc3 {[%emt 0:03:24]} Nd4 {[%emt 0:01:07]} 18. Bf1 {[%emt 0:05:53]} b5 {[%emt 0:00:46]} 19. Rac1 {[%emt 0:04:45]} Rab8 {[%emt 0:03:26]} 20. b3 {[%emt 0:07:42]} b4 {[%emt 0:03:47]} 21. Qa1 {[%emt 0:00:53]} Rb6 {[%emt 0:04:51]} 22. Re3 {[%emt 0:00:57]} Rdb8 {[%emt 0:00:51]} 23. Bd3 {[%emt 0:04:41]} a5 {[%emt 0:04:15]} 24. f4 {[%emt 0:00:22]} a4 {[%emt 0:03:12]} 25. Rf1 {[%emt 0:05:36]} Bd7 {[%emt 0:04:51]} 26. Qb1 {[%emt 0:03:09]} axb3 {[%emt 0:01:02]} 27. axb3 {[%emt 0:00:02]} Ra8 {[%emt 0:02:54]} 28. e5 {[%emt 0:08:00]} f5 {[%emt 0:04:58]} 29. Nf3 {[%emt 0:00:05]} Nxf3+ {[%emt 0:00:47]} 30. Rfxf3 {[%emt 0:00:06]} Rba6 {[%emt 0:00:11]} 31. Rf1 {[%emt 0:01:44]} g6 {[%emt 0:03:52]} 32. e6 {[%emt 0:04:16]} Bc6 {[%emt 0:00:36]} 33. Qe1 {[%emt 0:03:27]} Ra2 {[%emt 0:01:00]} 34. Be2 {[%emt 0:02:06]} Qf6 {[%emt 0:01:21]} 35. Bf3 {[%emt 0:07:48]} Bxf3 {[%emt 0:00:05]} 36. Rexf3 {[%emt 0:00:01]} Kf8 {[%emt 0:05:30]} 37. Rd3 {[%emt 0:03:22]} Rc2 {[%emt 0:02:03]} 38. Kh1 {[%emt 0:02:13]} Raa2 {[%emt 0:00:41]} 39. Rg1 {[%emt 0:00:01]} Re2 {[%emt 0:01:30]} 40. Qd1 {[%emt 0:00:07]} Rxe6 {[%emt 0:02:39]} 41. h3 {[%emt 0:50:08]} Ke7 {[%emt 0:03:32]} 42. Re1 {[%emt 0:00:00]} Kd7 {[%emt 0:08:00]} 43. Rxe6 {[%emt 0:00:00]} Qxe6 {[%emt 0:00:15]} 44. Kh2 {[%emt 0:00:00]} Kc7 {[%emt 0:00:26]} 45. Rd2 {[%emt 0:00:00]} Rxd2 {[%emt 0:02:18]} 46. Qxd2 {[%emt 0:00:00]} Qe4 {[%emt 0:00:24]} 47. g3 {[%emt 0:00:00]} d5 {[%emt 0:04:32]} 48. Qa2 {[%emt 0:00:00]} dxc4 {[%emt 0:10:58]} 49. Qa7+ {[%emt 0:00:00]} Kc6 {[%emt 0:01:02]} 50. Qa8+ {[%emt 0:00:00]} Kd7 {[%emt 0:00:23]} 51. Qa7+ {[%emt 0:00:00]} Ke6 {[%emt 0:01:35]} 52. Qb6+ {[%emt 0:00:00]} Kf7 {[%emt 0:00:09]} 53. Qxc5 {[%emt 0:00:00]} Qc2+ {[%emt 0:04:06]} 54. Kg1 {[%emt 0:00:00]} cxb3 {[%emt 0:00:40]} 55. Qd5+ {[%emt 0:00:00]} Ke7 {[%emt 0:00:10]} 56. Qe5+ {[%emt 0:00:00]} Kd7 {[%emt 0:00:13]} 57. Qd5+ {[%emt 0:00:00]} Kc7 {[%emt 0:00:05]} 58. Qa5+ {[%emt 0:00:00]} Kc6 {[%emt 0:00:18]} 0-1